bitfinex-derivatives/quotes_ETHF0:USTF0_20250902
["timestamp","ask_amount","ask_price","bid_price","bid_amount"]
[1756826111478,3.2078,4349.9,4348.8,3.2078]
[1756826111783,3.2078,4349.9,4348.9,0.25]
[1756826112078,3.2078,4350.4,4349.3,3.2078]
[1756826112377,3.2078,4350.9,4349.2,3.2078]
[1756826112578,3.2078,4350.4,4349.2,3.2078]
[1756826112784,3.2078,4350.4,4349.3,0.25]
[1756826113180,3.2078,4350.4,4349.7,3.2078]
[1756826113379,1.21881356,4351.7,4349.7,3.2078]
[1756826113380,3.2078,4350.9,4349.7,3.2078]
[1756826113580,3.2078,4350.3,4349.8,0.25]
[1756826113984,3.2078,4351.0,4349.8,0.25]
[1756826114483,3.2078,4352.7,4349.9,34.60389]
[1756826114685,3.2078,4352.7,4351.5,3.2078]
[1756826114875,3.2078,4352.7,4351.3,3.2078]
[1756826115075,3.2078,4352.7,4351.8,3.2078]
[1756826115279,3.2078,4353.3,4351.9,0.25]
[1756826115479,0.01910173,4352.6,4352.0,0.25]
[1756826115802,0.01910173,4352.6,4352.3,3.2078]
[1756826116080,0.01910173,4352.6,4352.4,0.251]
[1756826116279,0.01910173,4352.6,4352.3,3.2078]
[1756826116485,0.01910173,4352.5,4352.4,0.25]
[1756826117277,3.2078,4354.3,4352.4,41.2089769]
[1756826117482,3.2078,4354.3,4353.4,3.2078]
[1756826117790,3.2078,4355.3,4354.0,3.2078]
[1756826118685,3.2078,4354.8,4354.1,0.251]
[1756826119086,3.2078,4355.3,4354.0,3.2078]
[1756826119285,3.2078,4354.8,4354.1,0.251]
[1756826119485,3.2078,4354.8,4354.0,3.2078]
[1756826119486,3.2078,4354.8,4354.2,0.251]
[1756826120491,3.2078,4355.4,4354.2,0.251]
[1756826120684,3.2078,4355.4,4354.0,3.2078]
[1756826120984,3.2078,4355.4,4354.1,0.251]
[1756826121186,3.2078,4355.4,4354.0,3.2078]
[1756826121789,3.2078,4355.4,4354.1,0.251]
[1756826122083,3.2078,4354.9,4354.1,0.251]
[1756826122287,3.2078,4354.4,4354.1,0.251]
[1756826122983,3.2078,4355.0,4354.2,0.251]
[1756826123298,3.2078,4355.0,4354.1,0.251]
[1756826123586,3.2078,4354.5,4353.5,30.363]
[1756826123788,3.2078,4354.5,4353.9,0.251]
[1756826124088,3.2078,4354.9,4354.0,3.2078]
[1756826125278,3.2078,4354.7,4353.3,3.2078]
[1756826125586,0.16153779,4356.8,4353.3,44.0078]
[1756826125587,3.2078,4354.2,4353.3,44.0078]
[1756826125791,3.2078,4354.2,4353.4,0.251]
[1756826127076,3.2078,4354.2,4353.3,44.0078]
[1756826127279,3.2078,4354.2,4352.3,3.2078]
[1756826127482,3.2078,4353.5,4352.4,0.25]
[1756826127687,3.2078,4353.5,4352.5,0.251]
[1756826127883,3.2078,4353.5,4352.6,0.251]
[1756826128078,3.2078,4353.5,4352.3,3.2078]
[1756826128292,3.2078,4353.5,4352.4,0.251]
[1756826128483,3.2078,4353.5,4352.3,3.2078]
[1756826128796,3.2078,4353.3,4351.8,3.2078]
[1756826129090,3.2078,4352.7,4351.5,30.338]
[1756826129288,3.4588,4352.7,4351.5,0.251]
[1756826129491,3.2078,4352.2,4351.5,0.251]
[1756826129793,3.2078,4352.2,4350.8,3.2078]
[1756826129988,3.4588,4352.2,4350.8,3.2078]
[1756826130293,3.4588,4352.2,4350.2,3.2078]
[1756826130294,3.2078,4351.7,4350.2,3.2078]
[1756826130589,3.2078,4350.9,4350.0,0.251]
[1756826131199,3.2078,4350.9,4350.1,0.251]
[1756826131689,3.2078,4350.9,4349.7,3.2078]
[1756826131887,3.2078,4350.9,4350.0,0.251]
[1756826132093,3.2078,4351.7,4350.5,3.2078]
[1756826132288,3.2078,4351.2,4350.5,3.2078]
[1756826133190,0.60237684,4351.1,4350.5,3.2078]
[1756826133389,3.2078,4351.2,4350.5,3.2078]
[1756826133589,3.2078,4350.6,4349.7,3.2078]
[1756826133793,3.2078,4350.1,4349.5,0.25]
[1756826133991,0.25,4350.5,4349.5,0.25]
[1756826134291,3.2078,4351.1,4349.9,3.2078]
[1756826134596,3.2078,4351.1,4350.4,3.2078]
[1756826134794,3.2078,4351.1,4350.5,0.251]
[1756826135092,0.60449988,4351.0,4350.4,3.2078]
[1756826135293,0.6047554,4350.9,4350.3,0.251]
[1756826135490,0.60477804,4350.8,4350.3,0.251]
[1756826135695,3.2078,4351.1,4350.3,0.251]
[1756826135883,0.6047773,4351.0,4350.3,0.251]
[1756826136090,0.6047773,4350.9,4349.7,3.2078]
[1756826136289,3.2078,4351.1,4349.7,3.4588]
[1756826136290,0.6047773,4350.8,4349.7,3.4588]
[1756826136495,0.6047773,4350.7,4349.7,3.4588]
[1756826136692,0.6047773,4350.6,4350.4,3.2078]
[1756826136894,3.2078,4351.5,4350.2,0.251]
[1756826137098,0.60544114,4351.4,4350.4,3.2078]
[1756826137288,0.60544114,4351.3,4350.9,3.2078]
[1756826137490,0.60544114,4351.2,4350.9,3.4588]
[1756826137690,1.46981356,4352.5,4351.0,0.251]
[1756826137886,3.2078,4352.7,4351.4,3.2078]
[1756826138089,3.2078,4352.7,4351.5,0.252]
[1756826138299,3.2078,4352.7,4351.4,3.2078]
[1756826138491,3.2078,4352.7,4351.5,0.252]
[1756826138692,3.2078,4353.2,4352.1,3.2078]
[1756826138888,3.2078,4352.7,4352.1,3.2078]
[1756826139899,3.2078,4352.2,4350.7,3.2078]
[1756826140096,3.2078,4351.7,4350.7,3.2078]
[1756826140296,3.2078,4352.2,4351.2,3.2078]
[1756826140499,3.2078,4352.2,4351.3,3.4598]
[1756826140692,2.02964013,4353.0,4351.3,3.4598]
[1756826140693,3.2078,4353.0,4351.3,3.4598]
[1756826140886,3.2078,4352.9,4351.9,3.2078]
[1756826141087,3.2078,4352.9,4352.2,3.2078]
[1756826141692,3.2078,4352.9,4352.3,0.252]
[1756826142493,3.2078,4353.9,4352.7,3.2078]
[1756826142688,3.2078,4353.9,4353.2,3.2078]
[1756826142891,3.2078,4353.9,4353.3,0.252]
[1756826143293,3.2078,4354.6,4353.7,3.2078]
[1756826143601,3.2078,4354.6,4353.8,0.252]
[1756826143994,3.2078,4354.6,4352.9,40.8]
[1756826143995,3.2078,4354.1,4353.4,0.252]
[1756826144497,3.2078,4354.6,4353.7,3.2078]
[1756826144998,3.2078,4354.6,4353.8,0.253]
[1756826145196,0.253,4355.4,4354.3,3.2078]
[1756826145594,1.2201495,4354.5,4354.3,3.2078]
[1756826145805,3.2078,4354.4,4353.1,3.2078]
[1756826146002,3.2078,4354.4,4353.2,0.253]
[1756826146193,3.4608,4355.0,4353.7,3.2078]
[1756826146503,0.253,4354.9,4353.7,3.2078]
[1756826146695,0.253,4354.9,4353.7,3.4608]
[1756826147093,0.253,4354.9,4353.7,3.2078]
[1756826147294,3.2078,4354.5,4353.3,0.253]
[1756826147504,3.2078,4354.6,4353.2,0.253]
[1756826147794,0.253,4354.9,4353.6,3.2078]
[1756826147999,3.2078,4354.7,4353.7,0.253]
[1756826148201,1.2190626,4354.3,4353.7,0.253]
[1756826148393,3.2078,4354.7,4353.5,3.2078]
[1756826148590,3.2078,4354.2,4353.5,3.2078]
[1756826148797,3.2078,4353.7,4352.7,3.4608]
[1756826149495,0.253,4354.4,4353.4,3.2078]
[1756826149800,3.2078,4354.5,4353.5,0.253]
[1756826150698,3.2078,4354.5,4353.6,0.253]
[1756826150903,3.2078,4354.5,4352.2,40.8]
[1756826150904,1.21913499,4354.1,4352.9,3.2078]
[1756826151199,3.2078,4353.2,4351.4,3.2078]
[1756826151404,3.2078,4352.0,4351.4,3.2078]
[1756826152000,0.253,4351.9,4350.7,3.2078]
[1756826152198,3.2078,4351.1,4350.1,3.2078]
[1756826152400,3.2078,4351.1,4350.2,0.253]
[1756826152808,3.2078,4351.6,4350.2,0.253]
[1756826153104,3.4608,4351.6,4350.2,0.253]
[1756826153305,3.2078,4351.1,4350.2,0.253]
[1756826153495,0.60692968,4351.0,4350.2,0.253]
[1756826153699,3.2078,4351.6,4350.6,3.2078]
[1756826153905,3.2078,4351.6,4350.7,0.253]
[1756826154100,3.4608,4351.6,4350.6,3.2078]
[1756826154297,3.2078,4351.0,4350.0,3.4608]
[1756826155095,3.2078,4351.0,4350.1,0.253]
[1756826155900,3.2078,4351.0,4350.0,3.2078]
[1756826156101,0.6071711,4350.9,4350.0,3.2078]
[1756826156409,3.2078,4351.0,4350.0,3.2078]
[1756826156596,0.253,4351.4,4350.0,3.2078]
[1756826157196,3.2078,4351.1,4350.0,3.2078]
[1756826157400,0.253,4351.4,4350.0,3.2078]
[1756826157601,3.2078,4351.1,4350.0,3.2078]
[1756826158509,3.2078,4350.6,4350.0,3.2078]
[1756826158712,0.6069467,4350.5,4350.0,3.2078]
[1756826158903,3.2078,4350.1,4349.2,3.2078]
[1756826159308,3.2078,4350.1,4348.7,3.2078]
[1756826159510,3.2078,4349.3,4348.7,3.2078]
[1756826160108,0.253,4349.8,4348.7,3.2078]
[1756826160314,0.029,4350.2,4349.2,3.2078]
[1756826160506,3.2078,4350.4,4349.2,3.4608]
[1756826160705,3.2078,4350.9,4349.7,3.2078]
[1756826160904,3.2078,4350.9,4349.8,0.252]
[1756826161309,0.1629783,4353.0,4350.2,3.2078]
[1756826161310,3.2078,4351.5,4350.2,3.2078]
[1756826161713,3.2078,4351.5,4350.3,0.253]
[1756826162114,3.2078,4352.0,4350.7,3.2078]
[1756826162314,3.2078,4352.0,4350.8,0.253]
[1756826162514,3.2078,4352.0,4350.2,3.2078]
[1756826162715,3.2078,4352.0,4350.3,0.166]
[1756826162904,3.2078,4352.0,4350.9,3.2078]
[1756826163109,3.2078,4352.0,4350.3,0.166]
[1756826163110,3.2078,4352.0,4350.7,3.2078]
[1756826163318,3.2078,4352.0,4350.8,0.253]
[1756826163613,3.2078,4352.0,4350.9,0.253]
[1756826163803,3.2078,4351.5,4350.9,0.253]
[1756826164008,3.2078,4351.0,4350.1,0.253]
[1756826164209,3.2078,4351.0,4350.0,0.253]
[1756826164405,0.253,4351.6,4350.0,0.253]
[1756826164805,3.2078,4351.8,4350.0,0.253]
[1756826164806,3.2078,4351.8,4350.1,44.0078]
[1756826165015,3.2078,4351.8,4350.6,3.2078]
[1756826165210,3.2078,4351.3,4350.7,0.253]
[1756826165517,3.2078,4351.3,4350.6,3.2078]
[1756826165818,3.2078,4351.3,4350.8,0.253]
[1756826166014,3.2078,4351.3,4350.6,3.2078]
[1756826166512,3.2078,4351.3,4350.1,40.8]
[1756826166513,3.2078,4350.7,4350.4,0.253]
[1756826166715,3.2078,4350.7,4349.7,3.2078]
[1756826166914,3.2078,4350.2,4349.2,3.2078]
[1756826167219,0.252,4350.1,4349.2,3.2078]
[1756826167416,3.2078,4350.2,4349.2,3.2078]
[1756826167612,0.253,4350.1,4349.2,3.2078]
[1756826167918,0.253,4350.1,4348.3,40.8]
[1756826167919,3.2078,4349.6,4348.6,0.253]
[1756826168421,3.2078,4349.6,4348.6,3.4608]
[1756826169316,3.2078,4349.6,4348.3,40.8]
[1756826169619,3.2078,4349.6,4348.6,3.4608]
[1756826169817,3.2078,4349.6,4348.6,3.2078]
[1756826170015,3.2078,4349.6,4348.7,0.253]
[1756826170615,3.2078,4349.6,4348.2,40.8]
[1756826170809,3.2078,4349.6,4348.3,0.253]
[1756826171814,3.2078,4349.6,4348.5,3.2078]
[1756826172620,3.2078,4349.6,4348.3,0.253]
[1756826172914,3.2078,4349.6,4348.2,40.8]
[1756826172915,3.2078,4349.6,4348.4,0.253]
[1756826173122,3.2078,4349.0,4348.4,0.253]
[1756826174120,3.2078,4348.5,4347.6,0.252]
[1756826174518,3.2078,4348.5,4347.3,3.2078]
[1756826175019,3.2078,4348.0,4347.3,3.2078]
[1756826175226,3.2078,4348.5,4347.3,3.2078]
[1756826176323,3.2078,4348.0,4347.3,3.2078]
[1756826176520,0.253,4347.9,4346.7,3.2078]
[1756826176714,3.2078,4348.0,4346.7,3.2078]
[1756826176715,0.253,4347.8,4346.7,3.2078]
[1756826177116,0.253,4347.9,4346.7,3.2078]
[1756826177521,3.2078,4348.6,4347.4,3.2078]
[1756826177723,3.2078,4348.6,4347.9,3.2078]
[1756826177924,3.2078,4348.6,4348.0,0.253]
[1756826178627,3.2078,4348.6,4348.0,41.053]
[1756826179025,0.253,4349.4,4348.5,3.2078]
[1756826179026,3.2078,4349.2,4348.5,3.2078]
[1756826179229,0.253,4349.5,4348.5,3.2078]
[1756826179422,3.2078,4349.7,4348.5,3.2078]
[1756826179622,0.252,4349.6,4348.5,3.2078]
[1756826180625,0.252,4349.6,4348.5,3.4598]
[1756826181228,0.252,4349.6,4347.8,0.252]
[1756826181229,3.2078,4348.6,4347.8,0.252]
[1756826181623,3.2078,4348.6,4347.9,3.2078]
[1756826181822,3.2078,4349.2,4347.8,3.4598]
[1756826182018,3.2078,4349.2,4348.4,3.2078]
[1756826182223,3.2078,4349.2,4347.9,3.2078]
[1756826182422,3.2078,4348.2,4347.4,3.2078]
[1756826182621,3.2078,4348.2,4347.2,0.252]
[1756826182827,3.2078,4348.2,4347.1,0.252]
[1756826183023,3.2078,4348.2,4346.9,3.4598]
[1756826183530,0.252,4348.8,4347.4,3.2078]
[1756826183732,0.156,4349.0,4348.0,3.2078]
[1756826183933,3.2078,4349.3,4348.1,0.252]
[1756826184230,3.4598,4349.3,4348.1,0.252]
[1756826184525,3.2078,4349.3,4348.1,0.252]
[1756826186124,3.2078,4349.3,4348.0,3.2078]
[1756826186331,3.2078,4349.3,4348.2,0.252]
[1756826187632,3.2078,4349.3,4348.0,3.2078]
[1756826187928,3.2078,4348.8,4348.0,3.2078]
[1756826188133,3.4598,4348.8,4348.0,3.2078]
[1756826188333,0.252,4348.8,4348.0,3.2078]
[1756826189130,3.4598,4348.8,4348.0,3.2078]
[1756826189326,3.4598,4348.8,4347.6,3.2078]
[1756826189530,3.68982,4348.8,4347.4,0.252]
[1756826189732,3.2078,4348.8,4347.4,0.252]
[1756826189932,4.1018,4349.3,4347.8,3.2078]
[1756826190137,0.252,4350.2,4348.5,3.2078]
[1756826190437,3.2078,4350.4,4349.1,3.2078]
[1756826190633,30.355,4350.8,4349.6,3.2078]
[1756826190844,0.252,4351.2,4350.2,3.2078]
[1756826191034,0.252,4351.3,4349.9,0.252]
[1756826191237,3.2078,4351.4,4350.8,3.2078]
[1756826191539,3.2078,4352.4,4351.3,3.2078]
[1756826191736,3.2078,4352.4,4351.3,3.4598]
[1756826192033,3.2078,4352.9,4351.8,3.2078]
[1756826192241,0.252,4352.7,4351.8,3.2078]
[1756826192431,0.252,4352.7,4351.8,0.252]
[1756826192632,0.252,4352.7,4351.7,0.203]
[1756826192932,0.252,4352.7,4351.5,0.252]
[1756826193134,0.252,4352.7,4351.8,3.2078]
[1756826193326,0.252,4352.7,4351.5,0.252]
[1756826193327,3.2078,4352.4,4351.5,0.252]
[1756826193530,3.2078,4352.4,4351.8,3.2078]
[1756826193930,0.251,4352.8,4351.8,3.2078]
[1756826194130,0.251,4352.8,4351.5,0.252]
[1756826194531,0.22977,4352.7,4351.3,3.2078]
[1756826194735,3.2078,4352.3,4351.3,3.2078]
[1756826194934,0.251,4352.2,4351.3,3.2078]
[1756826195132,3.2078,4351.7,4350.7,3.2078]
[1756826195336,3.2078,4351.7,4350.7,3.4588]
[1756826195532,3.4588,4351.7,4350.7,3.2078]
[1756826195839,3.4588,4351.7,4350.6,40.8]
[1756826196234,3.4588,4351.7,4350.3,0.251]
[1756826196235,3.2078,4351.1,4350.3,0.251]
[1756826197338,3.2078,4351.1,4350.0,0.251]
[1756826197534,3.2078,4351.1,4349.9,0.251]
[1756826197734,3.2078,4351.1,4349.9,41.051]
[1756826198234,3.2078,4350.5,4349.5,0.251]
[1756826198428,0.251,4350.4,4349.5,0.251]
[1756826199339,3.2078,4350.5,4349.3,3.2078]
[1756826199537,3.2078,4351.5,4350.3,3.2078]
[1756826199935,3.2078,4351.0,4350.1,0.251]
[1756826200136,3.2078,4351.0,4349.7,3.2078]
[1756826200337,3.2078,4351.0,4349.8,0.251]
[1756826201246,3.2078,4351.0,4349.7,3.2078]
[1756826201544,3.2078,4350.5,4349.7,3.2078]
[1756826202144,3.2078,4350.5,4349.8,0.251]
[1756826203144,3.2078,4351.7,4350.2,3.2078]
[1756826203346,3.2078,4351.7,4350.7,3.2078]
[1756826203545,3.2078,4351.7,4350.8,0.25]
[1756826204142,3.2078,4351.7,4350.8,0.251]
[1756826205244,3.2078,4352.9,4351.6,3.2078]
[1756826205542,3.2078,4353.4,4352.1,3.2078]
[1756826205743,3.2078,4353.4,4352.2,0.25]
[1756826206346,3.2078,4353.4,4352.6,3.2078]
[1756826206748,3.2078,4353.4,4352.7,0.25]
[1756826208144,3.2078,4353.4,4352.6,3.2078]
[1756826208357,3.2078,4353.9,4352.7,0.25]
[1756826209153,3.2078,4353.9,4353.1,3.2078]
[1756826210053,3.2078,4353.9,4352.6,3.2078]
[1756826210346,3.2078,4353.9,4352.7,0.25]
[1756826210555,3.2078,4353.9,4352.8,0.25]
[1756826210756,3.2078,4353.9,4352.6,3.2078]
[1756826210944,3.2078,4353.9,4352.7,0.25]
[1756826211544,3.2078,4353.9,4352.6,3.2078]
[1756826211747,3.2078,4353.9,4352.7,0.25]
[1756826212050,3.2078,4354.5,4353.1,3.2078]
[1756826212346,3.2078,4354.5,4353.2,0.25]
[1756826213057,3.2078,4354.5,4353.7,3.2078]
[1756826213248,3.2078,4354.5,4353.3,40.8]
[1756826213555,3.2078,4353.9,4353.3,40.8]
[1756826213944,3.2078,4353.4,4352.1,3.37432153]
[1756826214148,3.2078,4353.4,4352.2,0.251]
[1756826214554,3.2078,4353.4,4352.3,40.8]
[1756826214755,3.2078,4353.4,4352.6,3.2078]
[1756826215355,3.2078,4353.4,4352.7,0.25]
[1756826215655,3.2078,4353.4,4352.3,40.8]
[1756826215856,3.2078,4353.4,4352.4,0.25]
[1756826217049,3.2078,4353.4,4352.6,3.2078]
[1756826217852,3.2078,4353.4,4352.7,0.25]
[1756826218547,3.2078,4353.4,4352.6,0.25]
[1756826218946,3.2078,4352.9,4352.0,3.2078]
[1756826219151,3.2078,4352.3,4351.4,0.25]
[1756826220254,3.2078,4353.3,4351.8,3.2078]
[1756826220556,3.2078,4353.3,4352.5,3.2078]
[1756826220755,3.2078,4353.3,4352.6,0.25]
[1756826221451,3.2078,4353.3,4352.5,0.197]
[1756826221854,3.2078,4353.3,4352.5,3.4048]
[1756826222048,3.2078,4353.3,4351.9,3.2078]
[1756826222251,0.25,4353.2,4352.0,0.25]
[1756826222452,3.2078,4353.3,4352.0,0.47974999]
[1756826222754,3.2078,4353.9,4352.3,3.2078]
[1756826222956,3.2078,4353.9,4353.1,3.2078]
[1756826223258,3.2078,4353.9,4353.1,0.25]
[1756826224255,3.2078,4353.9,4352.7,3.2078]
[1756826224454,3.2078,4353.4,4352.7,0.25]
[1756826224949,0.25,4353.7,4352.7,0.25]
[1756826225153,3.2078,4353.9,4352.7,3.4578]
[1756826225563,3.2078,4353.9,4352.7,3.2078]
[1756826225751,3.2078,4353.9,4352.8,0.25]
[1756826225948,3.2078,4353.9,4353.2,3.2078]
[1756826226162,3.4578,4354.4,4353.3,0.25]
[1756826226454,3.4578,4354.4,4352.7,3.2078]
[1756826226660,0.894,4354.3,4352.7,3.2078]
[1756826226860,0.894,4354.3,4352.8,0.25]
[1756826227155,0.894,4354.3,4353.3,3.2078]
[1756826227361,3.2078,4355.0,4353.8,3.2078]
[1756826228160,3.4578,4355.0,4353.9,0.25]
[1756826228657,3.4578,4355.0,4353.8,3.2078]
[1756826228854,3.2078,4354.3,4353.9,0.25]
[1756826229050,3.2078,4354.3,4353.4,3.2078]
[1756826229255,3.2078,4355.0,4353.1,3.4578]
[1756826229560,0.25,4354.9,4353.1,3.4578]
[1756826229761,3.2078,4355.0,4353.6,3.2078]
[1756826229959,3.4578,4355.5,4353.8,3.2078]
[1756826230167,3.2078,4355.5,4354.3,3.2078]
[1756826230460,3.2078,4355.5,4354.3,3.4578]
[1756826231457,3.2078,4355.5,4354.3,3.2078]
[1756826231662,3.2078,4355.5,4354.4,0.25]
[1756826232564,3.2078,4355.5,4354.3,3.4588]
[1756826232862,3.4588,4355.5,4354.3,3.4588]
[1756826233257,3.2078,4355.5,4354.3,3.4588]
[1756826233460,3.4588,4355.5,4354.3,3.4588]
[1756826233861,3.4588,4355.5,4354.3,3.2078]
[1756826234061,3.2078,4355.0,4353.7,3.4588]
[1756826234262,3.4588,4355.0,4353.7,3.4588]
[1756826234456,3.2078,4355.0,4353.7,3.4588]
[1756826234658,3.2078,4355.0,4353.8,0.22966]
[1756826234962,3.2078,4355.0,4353.6,3.2078]
[1756826234963,3.2078,4355.0,4353.9,0.25]
[1756826235359,30.329,4357.2,4351.7,3.2078]
[1756826235360,3.2078,4354.1,4351.7,3.2078]
[1756826235567,3.2078,4353.6,4351.5,0.248]
[1756826235758,3.2078,4352.9,4351.5,0.248]
[1756826236159,3.2078,4352.4,4351.5,0.248]
[1756826236461,3.2078,4352.5,4351.5,0.248]
[1756826236663,3.2078,4352.5,4351.4,3.2078]
[1756826236853,3.4598,4352.5,4351.4,3.2078]
[1756826237058,3.2078,4353.1,4351.4,3.2078]
[1756826237265,3.2078,4352.6,4350.7,3.2078]
[1756826237561,3.2078,4352.0,4350.7,3.2078]
[1756826237864,0.186,4351.9,4350.7,3.2078]
[1756826238260,3.2078,4351.5,4349.9,40.8]
[1756826238463,3.2078,4351.0,4349.8,3.4598]
[1756826238666,3.4598,4351.0,4349.8,3.2078]
[1756826240067,3.2078,4351.0,4349.8,3.2078]
[1756826240266,0.252,4350.9,4349.8,3.2078]
[1756826240866,3.2078,4351.0,4349.8,3.2078]
[1756826241067,3.4588,4351.0,4349.8,3.2078]
[1756826241367,3.4588,4351.0,4349.8,3.4588]
[1756826241561,3.2078,4351.0,4350.3,3.2078]
[1756826241761,0.251,4351.3,4350.3,3.2078]
[1756826241956,0.251,4351.5,4350.3,3.2078]
[1756826242161,0.251,4351.5,4350.1,0.251]
[1756826242360,0.251,4351.5,4349.7,3.2078]
[1756826242567,3.2078,4350.6,4349.2,3.2078]
[1756826242766,0.251,4350.5,4349.2,3.2078]
[1756826243568,3.2078,4350.6,4349.2,3.2078]
[1756826243765,0.251,4350.4,4349.2,3.2078]
[1756826243966,3.2078,4349.8,4349.2,3.2078]
[1756826244162,0.252,4349.7,4349.2,3.2078]
[1756826244367,3.2078,4349.3,4348.3,3.2078]
[1756826244564,0.252,4349.2,4348.3,3.2078]
[1756826245470,0.252,4349.2,4347.7,0.252]
[1756826245869,3.2078,4349.3,4347.7,0.252]
[1756826246071,3.2078,4348.8,4348.0,3.2078]
[1756826246467,0.251,4349.1,4348.0,3.2078]
[1756826246769,0.251,4349.2,4348.0,3.2078]
[1756826247071,3.2078,4348.8,4347.7,0.251]
[1756826247362,3.2078,4348.3,4347.0,3.2078]
[1756826247569,0.251,4348.2,4347.0,3.2078]
[1756826248371,3.2078,4347.8,4347.0,3.2078]
[1756826248569,0.251,4347.7,4347.0,3.2078]
[1756826248766,3.2078,4347.8,4347.0,3.2078]
[1756826248969,3.2078,4347.8,4347.0,3.4588]
[1756826249268,3.2078,4348.4,4347.0,3.4588]
[1756826249770,3.4588,4348.9,4347.5,3.2078]
[1756826250070,3.4588,4348.9,4347.6,0.251]
[1756826251162,3.4588,4348.9,4347.0,3.2078]
[1756826251359,3.2078,4348.4,4347.0,3.2078]
[1756826251561,0.17058072,4350.4,4347.0,3.2078]
[1756826251562,3.2078,4347.9,4347.0,3.2078]
[1756826251763,3.2078,4347.4,4346.1,3.2078]
[1756826251968,0.251,4347.3,4346.1,3.2078]
[1756826252168,3.2078,4347.2,4346.1,3.2078]
[1756826252368,0.251,4347.1,4346.1,3.2078]
[1756826253377,3.2078,4346.9,4346.1,3.2078]
[1756826255169,0.251,4347.0,4346.1,3.2078]
[1756826255665,0.251,4347.7,4346.6,3.2078]
[1756826256070,3.2078,4347.9,4346.6,3.4588]
[1756826256870,3.2078,4347.9,4346.7,0.251]
[1756826257074,3.4588,4347.9,4346.8,0.251]
[1756826257373,3.2078,4347.9,4347.1,3.2078]
[1756826257576,0.251,4348.2,4347.1,3.2078]
[1756826257967,0.196,4348.5,4347.1,3.2078]
[1756826258370,0.196,4348.5,4347.2,3.2078]
[1756826258571,3.2078,4348.1,4346.7,3.2078]
[1756826258772,0.251,4348.0,4346.7,3.2078]
[1756826259076,3.2078,4347.0,4346.0,3.2078]
[1756826259269,0.251,4346.9,4346.0,3.2078]
[1756826259964,3.2078,4347.0,4346.0,3.2078]
[1756826260171,3.4588,4347.9,4346.5,3.2078]
[1756826260375,3.2078,4347.9,4346.7,3.2078]
[1756826260569,0.251,4348.1,4346.7,3.2078]
[1756826260972,3.2078,4348.5,4346.7,3.2078]
[1756826261172,3.4588,4348.5,4347.3,3.2078]
[1756826261477,3.2078,4348.5,4347.4,0.251]
[1756826262071,3.2078,4348.5,4346.8,3.2078]
[1756826262267,3.2078,4348.5,4347.0,0.251]
[1756826262468,0.251,4348.4,4347.0,0.251]
[1756826262876,3.2078,4348.5,4347.0,0.251]
[1756826263378,3.2078,4348.5,4347.7,3.2078]
[1756826263678,3.2078,4348.5,4347.3,0.251]
[1756826264775,3.2078,4348.5,4347.6,3.2078]
[1756826265780,3.2078,4349.0,4348.1,3.2078]
[1756826266171,3.2078,4349.0,4347.6,3.2078]
[1756826266376,3.2078,4349.0,4347.7,0.251]
[1756826266677,3.2078,4349.0,4347.6,3.2078]
[1756826266976,3.2078,4349.0,4347.6,3.4588]
[1756826267673,3.2078,4348.2,4347.1,3.2078]
[1756826267872,0.25,4348.1,4347.1,3.2078]
[1756826268075,3.2078,4347.7,4346.5,0.251]
[1756826268474,3.2078,4346.7,4346.1,3.2078]
[1756826268874,3.2078,4346.2,4345.3,3.2078]
[1756826269069,3.2078,4345.6,4344.6,0.251]
[1756826269272,3.2078,4344.9,4344.1,0.251]
[1756826270178,3.4588,4345.4,4344.1,0.251]
[1756826270379,3.2078,4344.6,4343.9,3.2078]
[1756826270680,3.2078,4344.1,4343.3,3.2078]
[1756826272880,3.2078,4344.3,4343.3,3.4578]
[1756826273283,3.2078,4345.0,4343.8,3.2078]
[1756826273482,3.2078,4345.0,4343.9,0.25]
[1756826273780,3.2078,4345.0,4344.0,0.181]
[1756826274082,3.2078,4345.0,4343.3,3.2078]
[1756826274279,3.2078,4345.0,4343.3,3.62219]
[1756826274478,3.2078,4345.0,4343.4,0.66437]
[1756826274679,3.2078,4345.0,4343.5,0.41437]
[1756826274882,3.2078,4345.0,4343.4,0.25]
[1756826275076,3.2078,4344.5,4343.3,3.2078]
[1756826275276,3.2078,4344.0,4343.3,3.2078]
[1756826275477,3.2078,4343.5,4342.8,0.17500029]
[1756826276173,3.2078,4343.0,4342.8,0.17500029]
[1756826276377,3.4578,4343.0,4342.8,0.17500029]
[1756826277485,3.2078,4343.0,4342.8,0.17500029]
[1756826279787,0.25,4342.9,4342.8,0.17500029]
[1756826280187,3.2078,4343.0,4342.8,0.17500029]
[1756826280490,0.25,4342.9,4342.8,0.17500029]
[1756826281083,3.2078,4343.0,4342.8,0.17500029]
[1756826281280,3.4578,4343.0,4342.8,0.17500029]
[1756826281790,4.0,4342.9,4342.8,0.17500029]
[1756826282089,4.0,4342.9,4341.4,3.2078]